{"text_format":"1","workbook":"xlsx","n_sheets":6,"sheets":["Control Page w Buttons","order columns and delete 1","Inventory and Delivery","Sheet1","PivotTable","Data"],"not_rendered":{"charts":0,"images":0,"macros":1,"external_links":0,"defined_names":0,"comments":0,"pivot_tables":1},"unopened":[],"bounds":{"document_bytes":16777216,"sheet_cells":100000,"rows_first":2000,"rows_last":500,"rows_between":2000,"halvings":0,"cell_chars":16384,"cell_head_chars":4096},"cells_cut":0,"cells_raw":0,"read":"whole","date_system":"1900"}

{"sheet":"Control Page w Buttons","index":0,"n_rows":23,"n_cols":23,"rows_kept":23,"cut":false,"hidden":false,"merged":[]}
[null,null,null,null,null,null,null,null,null,null,null,null,"One","Two","Three",{"$f":"NOW()","v":"2014-08-11T22:36:47.850"},"we recorded and modifed a macro!"]
[]
[null,null,null,null,null,null,null,null,null,null,null,null,null,null,null,"One","Two","Three",{"$f":"NOW()","v":"2014-08-11T22:36:47.850"},"we recorded and modifed a macro!"]
[null,null,null,null,null,null,null,null,null,null,null,"One","Two","Three",{"$f":"NOW()","v":"2014-08-11T22:36:47.850"},"we recorded and modifed a macro!"]
[]
[null,null,null,null,null,null,"One","Two","Three",{"$f":"NOW()","v":"2014-08-11T22:36:47.850"},"we recorded and modifed a macro!",{"$f":"NOW()","v":"2014-08-11T22:36:47.850"},"we recorded and modifed a macro!",null,null,null,null,null,"One","Two","Three",{"$f":"NOW()","v":"2014-08-11T22:36:47.850"},"we recorded and modifed a macro!"]
[null,null,null,null,null,null,null,null,null,null,null,"One","Two","Three",{"$f":"NOW()","v":"2014-08-11T22:36:47.850"},"we recorded and modifed a macro!"]
[null,null,null,null,null,null,null,null,null,null,null,"One","Two","Three",{"$f":"NOW()","v":"2014-08-11T22:36:47.850"},"we recorded and modifed a macro!"]
[null,null,null,null,null,null,null,null,null,null,"One","Two","Three",{"$f":"NOW()","v":"2014-08-11T22:36:47.850"},"we recorded and modifed a macro!"]
[null,null,null,null,null,null,"One","Two","Three",{"$f":"NOW()","v":"2014-08-11T22:36:47.850"},"we recorded and modifed a macro!","Three",{"$f":"NOW()","v":"2014-08-11T22:36:47.850"},"we recorded and modifed a macro!"]
[null,null,null,null,null,"One","Two","Three",{"$f":"NOW()","v":"2014-08-11T22:36:47.850"},"we recorded and modifed a macro!",null,null,null,null,null,null,null,null,"One","Two","Three",{"$f":"NOW()","v":"2014-08-11T22:36:47.850"},"we recorded and modifed a macro!"]
[null,null,null,null,null,null,null,null,null,"One","Two","Three",{"$f":"NOW()","v":"2014-08-11T22:36:47.850"},"we recorded and modifed a macro!","we recorded and modifed a macro!"]
[]
[null,null,null,null,null,null,null,null,null,null,null,null,null,null,null,"One","Two","Three",{"$f":"NOW()","v":"2014-08-11T22:36:47.850"},"we recorded and modifed a macro!"]
[]
[]
[]
[null,null,null,null,null,null,"One","Two","Three",{"$f":"NOW()","v":"2014-08-11T22:36:47.850"},"we recorded and modifed a macro!",null,null,null,null,"One","Two","Three",{"$f":"NOW()","v":"2014-08-11T22:36:47.850"},"we recorded and modifed a macro!"]
[null,null,null,null,null,null,"One","Two","Three",{"$f":"NOW()","v":"2014-08-11T22:36:47.850"},"we recorded and modifed a macro!"]
[null,null,null,null,null,null,null,"One","Two","Three",{"$f":"NOW()","v":"2014-08-11T22:36:47.850"},"we recorded and modifed a macro!"]
[null,null,null,null,null,null,null,null,"One","Two","Three",{"$f":"NOW()","v":"2014-08-11T22:36:47.850"},"we recorded and modifed a macro!"]
[null,null,null,null,null,null,null,null,null,"One","Two","Three",{"$f":"NOW()","v":"2014-08-11T22:36:47.850"},"we recorded and modifed a macro!"]
[null,null,null,null,null,null,null,null,null,null,"One","Two","Three",{"$f":"NOW()","v":"2014-08-11T22:36:47.850"},"we recorded and modifed a macro!"]

{"sheet":"order columns and delete 1","index":1,"n_rows":1,"n_cols":8,"rows_kept":1,"cut":false,"hidden":false,"merged":[]}
["c","e","a","f","g","Private","b","c"]

{"sheet":"Inventory and Delivery","index":2,"n_rows":8,"n_cols":4,"rows_kept":8,"cut":false,"hidden":false,"merged":[]}
[null,"Today's Date",{"$f":"NOW()","v":"2014-08-11T22:36:47.850"}]
[null,"Date of Current Inventory","2014-08-11T22:36:47.720"]
[]
[null,"Current Inventory","Expect Delivery","Actual Delivery"]
["Apples",60,0]
["Pears",60,0]
["Carrots",60,0]
["Oranges",60,0]

{"sheet":"Sheet1","index":3,"n_rows":8,"n_cols":4,"rows_kept":8,"cut":false,"hidden":false,"merged":[]}
[null,"Today's Date","2014-08-11T22:36:40.600"]
[null,"Date of Current Inventory","2014-08-09T11:19:02.680"]
[]
[null,"Current Inventory","Expect Delivery","Actual Delivery"]
["Apples",52,8,8]
["Pears",52,8,8]
["Carrots",52,8,8]
["Oranges",52,8,8]

{"sheet":"PivotTable","index":4,"n_rows":11,"n_cols":7,"rows_kept":11,"cut":false,"hidden":false,"merged":[]}
[]
[]
["Sum of Day 1","Column Labels"]
["Row Labels","clothes","food","supplies","toy","utility","Grand Total"]
["gas",null,null,null,null,25,25]
["groceries",null,85,null,null,null,85]
["pen",null,null,0,null,null,0]
["scooter",null,null,null,70,null,70]
["shirt",75,null,null,null,null,75]
["shoes",290,null,null,null,null,290]
["Grand Total",365,85,0,70,25,545]

{"sheet":"Data","index":5,"n_rows":8,"n_cols":3,"rows_kept":8,"cut":false,"hidden":false,"merged":[]}
["Item","Category","Day 1"]
["groceries","food",50]
["shirt","clothes",75]
["gas","utility",25]
["pen","supplies",0]
["scooter","toy",70]
["shoes","clothes",290]
["groceries","food",35]